fUST/lending_fUST_20250425
["ID","MTS","AMOUNT","RATE_DAILY","PERIOD"]
[358883342,1745524238283,-500.0,0.00016812,2]
[358883343,1745524238292,-500.0,0.00016812,2]
[358883344,1745524238301,-500.0,0.00016812,2]
[358883345,1745524238311,-1315.67,0.00016812,2]
[358883346,1745524238320,-500.0,0.00016812,2]
[358883347,1745524238329,-500.0,0.00016812,2]
[358883348,1745524238339,-500.0,0.00016812,2]
[358883349,1745524238348,-500.0,0.00016812,2]
[358883350,1745524238359,-1136.54,0.00016812,2]
[358883351,1745524238368,-508.22505026,0.00016812,2]
[358883352,1745524238378,-500.0,0.00016812,2]
[358883353,1745524238387,-500.0,0.00016812,2]
[358883354,1745524238397,-500.0,0.00016812,2]
[358883355,1745524238409,-500.0,0.00016812,2]
[358883356,1745524238419,-1749.9,0.00016812,2]
[358883357,1745524238428,-500.0,0.00016812,2]
[358883358,1745524238438,-500.0,0.00016812,2]
[358883359,1745524238448,-606.64,0.00016812,2]
[358883360,1745524238457,-500.0,0.00016812,2]
[358883361,1745524238467,-500.0,0.00016812,2]
[358883362,1745524238477,-500.0,0.00016812,2]
[358883363,1745524238487,-1310.16,0.00016812,2]
[358883364,1745524238497,-693.49,0.00016812,2]
[358883365,1745524238506,-500.0,0.00016812,2]
[358883366,1745524238516,-500.0,0.00016812,2]
[358883367,1745524238527,-500.0,0.00016812,2]
[358883368,1745524238537,-500.0,0.00016812,2]
[358883369,1745524238547,-500.0,0.00016812,2]
[358883370,1745524238557,-500.0,0.00016812,2]
[358883371,1745524238566,-500.0,0.00016812,2]
[358883372,1745524238576,-500.0,0.00016812,2]
[358883373,1745524238586,-500.0,0.00016812,2]
[358883374,1745524238595,-500.0,0.00016812,2]
[358883375,1745524238605,-500.0,0.00016812,2]
[358883376,1745524238617,-500.0,0.00016812,2]
[358883377,1745524238626,-1050.67,0.00016812,2]
[358883378,1745524238636,-215.15714189,0.00016812,2]
[358883379,1745524238645,-669.34,0.00016812,2]
[358883380,1745524238655,-500.0,0.00016812,2]
[358883381,1745524238665,-500.0,0.00016812,2]
[358883382,1745524238674,-500.0,0.00016812,2]
[358883383,1745524238684,-539.10768643,0.00016812,2]
[358883384,1745524238693,-1000.0,0.00016812,2]
[358883385,1745524238703,-4362.67,0.00016812,2]
[358883386,1745524238712,-500.0,0.00016812,2]
[358883387,1745524238721,-501.97397406,0.00016812,2]
[358883388,1745524238730,-500.0,0.00016812,2]
[358883389,1745524238740,-500.0,0.00016812,2]
[358883390,1745524238749,-508.83018846,0.00016812,2]
[358883391,1745524238760,-500.0,0.00016812,2]
[358883392,1745524238769,-518.66419306,0.00016812,2]
[358883393,1745524238780,-1440.68,0.00016812,2]
[358883394,1745524238979,-600.32904156,0.00016812,2]
[358883395,1745524238988,-505.1590037,0.00016812,2]
[358883396,1745524238998,-500.0,0.00016812,2]
[358883397,1745524239007,-500.0,0.00016812,2]
[358883398,1745524239016,-500.0,0.00016812,2]
[358883399,1745524239026,-500.0,0.00016812,2]
[358883400,1745524239038,-500.0,0.00016812,2]
[358883401,1745524239049,-500.0,0.00016812,2]
[358883402,1745524239058,-1678.32,0.00016812,2]
[358883403,1745524239068,-217.64052782,0.00016812,2]
[358883404,1745524239079,-500.0,0.00016812,2]
[358883405,1745524239089,-500.0,0.00016812,2]
[358883406,1745524239101,-500.0,0.00016812,2]
[358883407,1745524239110,-500.0,0.00016812,2]
[358883408,1745524239120,-4053.66,0.00016812,2]
[358883409,1745524239131,-504.46169757,0.00016812,2]
[358883410,1745524239140,-500.0,0.00016812,2]
[358883411,1745524239150,-500.0,0.00016812,2]
[358883412,1745524239159,-500.0,0.00016812,2]
[358883413,1745524239168,-1187.28,0.00016812,2]
[358883414,1745524239178,-643.87,0.00016812,2]
[358883415,1745524239188,-500.0,0.00016812,2]
[358883416,1745524239198,-1402.52,0.00016812,2]
[358883417,1745524239208,-500.0,0.00016812,2]
[358883418,1745524239218,-599.93,0.00016812,2]
[358883419,1745524239227,-500.0,0.00016812,2]
[358883420,1745524239238,-507.08385927,0.00016812,2]
[358883421,1745524239248,-501.41201005,0.00016812,2]
[358883422,1745524239268,-501.76168748,0.00016812,2]
[358883423,1745524239278,-500.0,0.00016812,2]
[358883425,1745524239290,-500.0,0.00016812,2]
[358883426,1745524239300,-500.0,0.00016812,2]
[358883427,1745524239311,-500.0,0.00016812,2]
[358883428,1745524239324,-500.0,0.00016812,2]
[358883429,1745524239336,-500.0,0.00016812,2]
[358883430,1745524239348,-500.0,0.00016812,2]
[358883431,1745524239360,-500.0,0.00016812,2]
[358883432,1745524239371,-500.0,0.00016812,2]
[358883433,1745524239381,-504.6676617,0.00016812,2]
[358883434,1745524239391,-500.0,0.00016812,2]
[358883435,1745524239401,-1850.52,0.00016812,2]
[358883437,1745524239412,-500.0,0.00016812,2]
[358883439,1745524239422,-500.0,0.00016812,2]
[358883440,1745524239432,-500.0,0.00016812,2]
[358883441,1745524239441,-506.26261494,0.00016812,2]
[358883442,1745524239451,-500.0,0.00016812,2]
[358883443,1745524239461,-500.0,0.00016812,2]
[358883444,1745524239473,-4499.32,0.00016812,2]
[358883445,1745524239483,-3908.64,0.00016812,2]
[358883446,1745524239494,-507.99,0.00016812,2]
[358883447,1745524239504,-500.0,0.00016812,2]
[358883448,1745524239514,-504.05371868,0.00016812,2]
[358883449,1745524239524,-504.18676747,0.00016812,2]
[358883450,1745524239534,-500.0,0.00016812,2]
[358883451,1745524239544,-528.57,0.00016812,2]
[358883452,1745524239556,-500.0,0.00016812,2]
[358883453,1745524239566,-500.0,0.00016812,2]
[358883454,1745524239576,-649.42,0.00016812,2]
[358883455,1745524239586,-892.39,0.00016812,2]
[358883456,1745524239596,-500.0,0.00016812,2]
[358883457,1745524239608,-751.46,0.00016812,2]
[358883458,1745524239618,-500.0,0.00016812,2]
[358883459,1745524239628,-500.0,0.00016812,2]
[358883460,1745524239638,-277.55965147,0.00016812,2]
[358883461,1745524239648,-500.0,0.00016812,2]
[358883463,1745524239658,-502.87061232,0.00016812,2]
[358883465,1745524239667,-500.0,0.00016812,2]
[358883467,1745524239677,-500.0,0.00016812,2]
[358883469,1745524239687,-4410.01,0.00016812,2]
[358883472,1745524239698,-500.0,0.00016812,2]
[358883474,1745524239707,-500.0,0.00016812,2]
[358883476,1745524239717,-500.0,0.00016812,2]
[358883478,1745524239727,-500.67281212,0.00016812,2]
[358883480,1745524239736,-809.96,0.00016812,2]
[358883482,1745524239746,-500.0,0.00016812,2]
[358883484,1745524239755,-500.0,0.00016812,2]
[358883486,1745524239764,-500.0,0.00016812,2]
[358883488,1745524239774,-500.0,0.00016812,2]
[358883490,1745524239786,-500.0,0.00016812,2]
[358883492,1745524239796,-500.0,0.00016812,2]
[358883494,1745524239805,-500.0,0.00016812,2]
[358883496,1745524239815,-500.0,0.00016812,2]
[358883498,1745524239824,-500.0,0.00016812,2]
[358883500,1745524239834,-516.38515275,0.00016812,2]
[358883502,1745524239843,-503.14552114,0.00016812,2]
[358883504,1745524239853,-500.0,0.00016812,2]
[358883506,1745524239864,-500.0,0.00016812,2]
[358883508,1745524239874,-500.0,0.00016812,2]
[358883510,1745524239883,-505.61873869,0.00016813,2]
[358883512,1745524239892,-500.0,0.00016813,2]
[358883514,1745524239902,-528.44508723,0.00016813,2]
[358883516,1745524239912,-832.16,0.00016813,2]
[358883518,1745524239921,-500.0,0.00016813,2]
[358883520,1745524239931,-575.99994696,0.00016813,2]
[358883522,1745524239940,-503.40947139,0.00016813,2]
[358883524,1745524239950,-500.0,0.00016813,2]
[358883526,1745524239960,-501.14443384,0.00016813,2]
[358883528,1745524239969,-500.0,0.00016813,2]
[358883530,1745524239979,-500.0,0.00016813,2]
[358883532,1745524239988,-500.0,0.00016813,2]
[358883534,1745524239998,-613.26,0.00016813,2]
[358883535,1745524240007,-1504.3,0.00016813,2]
[358883537,1745524240017,-504.62886213,0.00016813,2]
[358883539,1745524240028,-764.91,0.00016813,2]
[358883541,1745524240038,-500.0,0.00016813,2]
[358883543,1745524240048,-622.19085546,0.00016813,2]
[358883545,1745524240058,-500.0,0.00016813,2]
[358883547,1745524240067,-500.0,0.00016813,2]
[358883549,1745524240077,-1365.19,0.00016813,2]
[358883551,1745524240088,-500.0,0.00016813,2]
[358883554,1745524240098,-500.0,0.00016813,2]
[358883556,1745524240109,-500.0,0.00016813,2]
[358883557,1745524240119,-500.0,0.00016813,2]
[358883560,1745524240131,-568.47,0.00016813,2]
[358883561,1745524240141,-500.0,0.00016813,2]
[358883563,1745524240150,-1337.94,0.00016813,2]
[358883566,1745524240160,-783.58,0.00016813,2]
[358883568,1745524240170,-500.0,0.00016813,2]
[358883570,1745524240179,-1529.23,0.00016813,2]
[358883572,1745524240188,-312.38996744,0.00016813,2]
[358883573,1745524240198,-500.0,0.00016813,2]
[358883575,1745524240208,-1055.99,0.00016813,2]
[358883577,1745524240217,-500.0,0.00016813,2]
[358883579,1745524240227,-500.0,0.00016813,2]
[358883581,1745524240236,-500.0,0.00016813,2]
[358883583,1745524240246,-504.2932051,0.00016813,2]
[358883585,1745524240256,-500.0,0.00016813,2]
[358883587,1745524240265,-500.0,0.00016813,2]
[358883590,1745524240276,-500.0,0.00016813,2]
[358883592,1745524240286,-500.0,0.00016813,2]
[358883594,1745524240296,-500.0,0.00016813,2]
[358883596,1745524240306,-500.0,0.00016813,2]
[358883597,1745524240316,-500.0,0.00016813,2]
[358883600,1745524240330,-500.0,0.00016813,2]
[358883602,1745524240341,-803.73,0.00016813,2]
[358883604,1745524240351,-500.0,0.00016813,2]
[358883606,1745524240360,-829.67,0.00016813,2]
[358883608,1745524240370,-1323.04,0.00016813,2]
[358883610,1745524240379,-952.08,0.00016813,2]
[358883612,1745524240389,-500.0,0.00016813,2]
[358883614,1745524240399,-500.0,0.00016813,2]
[358883616,1745524240408,-500.0,0.00016813,2]
[358883618,1745524240418,-500.0,0.00016813,2]
[358883620,1745524240427,-1001.81,0.00016813,2]
[358883622,1745524240437,-500.0,0.00016813,2]
[358883624,1745524240448,-500.0,0.00016813,2]
[358883626,1745524240458,-500.0,0.00016813,2]
[358883628,1745524240468,-500.0,0.00016813,2]
[358883630,1745524240478,-500.0,0.00016813,2]
[358883632,1745524240487,-500.0,0.00016813,2]
[358883634,1745524240497,-493.48261701,0.00016813,2]
[358883636,1745524240506,-500.0,0.00016813,2]
[358883638,1745524240516,-500.0,0.00016813,2]
[358883640,1745524240525,-151.0,0.00016813,2]
[358883642,1745524240535,-506.52,0.00016813,2]
[358883644,1745524240544,-500.0,0.00016813,2]
[358883646,1745524240554,-765.41,0.00016813,2]
[358883648,1745524240563,-500.0,0.00016813,2]
[358883650,1745524240573,-500.0,0.00016813,2]
[358883652,1745524240583,-500.0,0.00016813,2]
[358883654,1745524240592,-500.0,0.00016813,2]
[358883656,1745524240602,-500.0,0.00016813,2]
[358883658,1745524240611,-500.0,0.00016813,2]
[358883660,1745524240620,-500.0,0.00016813,2]
[358883662,1745524240630,-500.0,0.00016813,2]
[358883664,1745524240640,-500.0,0.00016813,2]
[358883666,1745524240649,-500.0,0.00016813,2]
[358883668,1745524240659,-1299.59,0.00016813,2]
[358883670,1745524240668,-1673.55,0.00016813,2]
[358883672,1745524240678,-847.52,0.00016813,2]
[358883674,1745524240688,-1103.67,0.00016813,2]
[358883676,1745524240697,-500.0,0.00016813,2]
[358883678,1745524240707,-500.0,0.00016813,2]
[358883680,1745524240716,-500.0,0.00016813,2]
[358883682,1745524240725,-500.0,0.00016813,2]
[358883684,1745524240735,-500.0,0.00016813,2]
[358883686,1745524240744,-500.0,0.00016813,2]
[358883688,1745524240753,-507.19765166,0.00016813,2]
[358883690,1745524240763,-594.43,0.00016813,2]
[358883692,1745524240773,-500.0,0.00016813,2]
[358883694,1745524240785,-500.0,0.00016813,2]
[358883696,1745524240795,-500.0,0.00016813,2]
[358883698,1745524240804,-500.0,0.00016813,2]
[358883700,1745524240814,-955.31,0.00016813,2]
[358883702,1745524240825,-8121.09,0.00016813,2]
[358883704,1745524240834,-678.82,0.00016813,2]
[358883706,1745524240844,-513.56409681,0.00016813,2]
[358883708,1745524240853,-4183.75,0.00016813,2]
[358883710,1745524240865,-500.0,0.00016813,2]
[358883712,1745524240874,-500.0,0.00016813,2]
[358883714,1745524240884,-500.0,0.00016813,2]
[358883716,1745524240894,-500.0,0.00016813,2]
[358883718,1745524240903,-500.0,0.00016813,2]
[358883720,1745524240913,-500.0,0.00016813,2]
[358883722,1745524240922,-634.55289522,0.00016813,2]
[358883724,1745524240931,-500.0,0.00016813,2]
[358883726,1745524240942,-500.0,0.00016813,2]
[358883728,1745524240952,-1063.07,0.00016813,2]
[358883730,1745524240962,-1627.51,0.00016813,2]
[358883732,1745524240971,-500.0,0.00016813,2]
[358883734,1745524240982,-500.0,0.00016813,2]
[358883736,1745524240992,-570.79,0.00016813,2]
[358883738,1745524241003,-680.5,0.00016813,2]
[358883740,1745524241012,-500.0,0.00016813,2]
[358883742,1745524241022,-500.0,0.00016813,2]
[358883744,1745524241031,-500.0,0.00016813,2]
[358883746,1745524241041,-500.0,0.00016813,2]
[358883748,1745524241051,-502.44431671,0.00016813,2]
[358883750,1745524241061,-500.0,0.00016813,2]
[358883752,1745524241071,-500.0,0.00016813,2]
[358883754,1745524241081,-500.0,0.00016813,2]
[358883756,1745524241091,-500.0,0.00016813,2]
[358883758,1745524241100,-831.23,0.00016813,2]
[358883759,1745524241110,-500.0,0.00016813,2]
[358883760,1745524241119,-500.68969556,0.00016813,2]
[358883761,1745524241129,-494.82033752,0.00016813,2]
[358883762,1745524241138,-500.0,0.00016813,2]
[358883763,1745524241148,-500.0,0.00016813,2]
[358883764,1745524241157,-1150.86,0.00016813,2]
[358883765,1745524241166,-6534.19,0.00016813,2]
[358883766,1745524241176,-1086.6,0.00016813,2]
[358883767,1745524241185,-980.97,0.00016813,2]
[358883768,1745524241195,-501.43301874,0.00016813,2]
[358883769,1745524241204,-507.15,0.00016813,2]
[358883770,1745524241214,-502.1583841,0.00016813,2]
[358883771,1745524241223,-500.0,0.00016813,2]
[358883772,1745524241233,-1143.43,0.00016813,2]
[358883773,1745524241242,-501.73171305,0.00016813,2]
[358883774,1745524241405,-500.0,0.00016813,2]
[358883775,1745524241415,-500.0,0.00016813,2]
[358883776,1745524241425,-500.0,0.00016813,2]
[358883777,1745524241436,-1138.89,0.00016813,2]
[358883778,1745524241445,-500.0,0.00016813,2]
[358883779,1745524241455,-609.52,0.00016813,2]
[358883780,1745524241464,-500.0,0.00016813,2]
[358883781,1745524241474,-500.0,0.00016813,2]
[358883782,1745524241483,-760.57,0.00016813,2]
[358883783,1745524241492,-576.39645204,0.00016813,2]
[358883784,1745524241502,-2975.29,0.00016813,2]
[358883785,1745524241511,-500.0,0.00016813,2]
[358883786,1745524241521,-1860.88,0.00016813,2]
[358883787,1745524241530,-500.0,0.00016813,2]
[358883788,1745524241540,-500.0,0.00016813,2]
[358883789,1745524241549,-500.0,0.00016813,2]
[358883790,1745524241559,-863.13,0.00016813,2]
[358883791,1745524241569,-500.0,0.00016813,2]
[358883792,1745524241579,-500.0,0.00016813,2]
[358883793,1745524241588,-500.0,0.00016813,2]
[358883794,1745524241598,-500.0,0.00016814,2]
[358883795,1745524241607,-500.0,0.00016814,2]
[358883796,1745524241617,-151.0,0.00016814,2]
[358883797,1745524241627,-151.0,0.00016814,2]
[358883798,1745524241636,-2411.538361,0.00016814,2]
[358883799,1745524241645,-2411.538361,0.00016814,2]
[358883800,1745524241655,-151.0,0.00016814,2]
[358883801,1745524241664,-500.0,0.00016814,2]
[358883802,1745524241675,-500.0,0.00016814,2]
[358883803,1745524241691,-500.0,0.00016814,2]
[358883804,1745524241700,-267.02478211,0.00016814,2]
[358883805,1745524241709,-151.0,0.00016814,2]
[358883806,1745524241719,-151.0,0.00016814,2]
[358883807,1745524241730,-151.0,0.00016814,2]
[358883808,1745524241739,-151.0,0.00016814,2]
[358883809,1745524241748,-151.0,0.00016814,2]
[358883810,1745524241757,-185.770888,0.00016814,2]
[358883811,1745524241767,-500.0,0.00016815,2]
[358883812,1745524241776,-500.0,0.00016815,2]
[358883813,1745524241789,-502.2594155,0.00016815,2]
[358883814,1745524241800,-500.0,0.00016815,2]
[358883815,1745524241810,-500.0,0.00016815,2]
[358883816,1745524241820,-151.0,0.00016815,2]
[358883817,1745524241830,-151.0,0.00016815,2]
[358883818,1745524241839,-500.0,0.00016815,2]
[358883819,1745524241849,-500.0,0.00016815,2]
[358883820,1745524241860,-506.69093985,0.00016815,2]
[358883821,1745524241870,-500.0,0.00016815,2]
[358883822,1745524241880,-500.0,0.00016815,2]
[358883823,1745524241889,-503.38174264,0.00016815,2]
[358883824,1745524241899,-500.0,0.00016815,2]
[358883825,1745524241909,-500.0,0.00016815,2]
[358883826,1745524241918,-502.25035696,0.00016815,2]
[358883827,1745524241927,-500.0,0.00016815,2]
[358883828,1745524241939,-505.54069586,0.00016815,2]
[358883829,1745524241952,-500.0,0.00016815,2]
[358883830,1745524241962,-503.34243995,0.00016815,2]
[358883831,1745524241972,-500.0,0.00016815,2]
[358883832,1745524241981,-500.0,0.00016815,2]
[358883833,1745524241991,-500.0,0.00016815,2]
[358883834,1745524242000,-151.0,0.00016815,2]
[358883835,1745524242010,-151.0,0.00016815,2]
[358883836,1745524242019,-500.0,0.00016815,2]
[358883837,1745524242029,-503.15591446,0.00016815,2]
[358883838,1745524242039,-500.0,0.00016815,2]
[358883839,1745524242049,-500.0,0.00016815,2]
[358883840,1745524242059,-500.0,0.00016815,2]
[358883841,1745524242068,-500.0,0.00016815,2]
[358883842,1745524242078,-501.06957214,0.00016815,2]
[358883843,1745524242088,-500.0,0.00016815,2]
[358883844,1745524242098,-500.0,0.00016815,2]
[358883845,1745524242109,-500.0,0.00016815,2]
[358883846,1745524242118,-500.0,0.00016815,2]
[358883847,1745524242127,-500.0,0.00016815,2]
[358883848,1745524242137,-502.84535847,0.00016815,2]
[358883849,1745524242147,-500.0,0.00016815,2]
[358883850,1745524242157,-215.57357222,0.00016815,2]
[358883851,1745524242168,-518.22253615,0.00016815,2]
[358883852,1745524242179,-500.0,0.00016815,2]
[358883853,1745524242189,-500.0,0.00016815,2]
[358883854,1745524242198,-502.38,0.00016815,2]
[358883856,1745524242210,-372.76242901,0.00016815,2]
[358883858,1745524242219,-151.0,0.00016815,2]
[358883859,1745524242229,-503.79091632,0.00016815,2]
[358883860,1745524242238,-151.0,0.00016815,2]
[358883861,1745524242247,-500.0,0.00016815,2]
[358883862,1745524242257,-500.0,0.00016815,2]
[358883863,1745524242266,-500.0,0.00016815,2]
[358883864,1745524242277,-593.93519418,0.00016815,2]
[358883865,1745524242287,-151.0,0.00016815,2]
[358883866,1745524242298,-151.0,0.00016815,2]
[358883867,1745524242308,-156.612074,0.00016815,2]
[358883868,1745524242318,-500.0,0.00016815,2]
[358883869,1745524242327,-504.5770294,0.00016815,2]
[358883870,1745524242336,-503.07774411,0.00016815,2]
[358883871,1745524242346,-500.0,0.00016815,2]
[358883872,1745524242355,-500.0,0.00016815,2]
[358883873,1745524242365,-500.0,0.00016815,2]
[358883875,1745524242374,-500.0,0.00016815,2]
[358883876,1745524242384,-502.62516301,0.00016815,2]
[358883877,1745524242393,-500.0,0.00016815,2]
[358883878,1745524242403,-167.32404216,0.00016815,2]
[358883879,1745524242412,-500.45262469,0.00016815,2]
[358883880,1745524242424,-151.0,0.00016815,2]
[358883881,1745524242441,-151.0,0.00016815,2]
[358883882,1745524242460,-500.0,0.00016815,2]
[358883883,1745524242474,-151.0,0.00016815,2]
[358883884,1745524242488,-500.0,0.00016815,2]
[358883885,1745524242504,-500.0,0.00016815,2]
[358883886,1745524242519,-500.0,0.00016815,2]
[358883887,1745524242534,-151.0,0.00016815,2]
[358883888,1745524242550,-151.0,0.00016815,2]
[358883889,1745524242566,-151.0,0.00016815,2]
[358883890,1745524242581,-627.99,0.00016815,2]
[358883891,1745524242595,-500.0,0.00016815,2]
[358883892,1745524242611,-500.0,0.00016815,2]
[358883893,1745524242625,-500.0,0.00016815,2]
[358883894,1745524242637,-500.0,0.00016815,2]
[358883895,1745524242648,-189.30487064,0.00016815,2]
[358883896,1745524242662,-1242.06,0.00016815,2]
[358883898,1745524242676,-500.0,0.00016815,2]
[358883900,1745524242690,-500.0,0.00016815,2]
[358883903,1745524242705,-500.0,0.00016815,2]
[358883905,1745524242721,-500.0,0.00016815,2]
[358883908,1745524242737,-500.0,0.00016815,2]
[358883910,1745524242748,-500.0,0.00016815,2]
[358883912,1745524242759,-503.76834141,0.00016815,2]
[358883914,1745524242770,-500.0,0.00016815,2]
[358883917,1745524242786,-500.0,0.00016815,2]
[358883919,1745524242801,-151.0,0.00016815,2]
[358883922,1745524242811,-151.0,0.00016815,2]
[358883924,1745524242823,-230.606272,0.00016815,2]
[358883926,1745524242836,-500.0,0.00016815,2]
[358883928,1745524242849,-384.44763283,0.00016815,2]
[358883931,1745524242861,-151.0,0.00016815,2]
[358883933,1745524242872,-151.0,0.00016815,2]
[358883935,1745524242885,-500.0,0.00016815,2]
[358883937,1745524242897,-151.397536,0.00016815,2]
[358883940,1745524242909,-495.89962436,0.00016815,2]
[358883942,1745524242922,-279.98879875,0.00016815,2]
[358883944,1745524242934,-1743.164742,0.00016815,2]
[358883947,1745524242946,-1743.164742,0.00016815,2]
[358883949,1745524242958,-1743.164742,0.00016815,2]
[358883951,1745524242971,-500.0,0.00016815,2]
[358883953,1745524242985,-1743.164742,0.00016815,2]
[358883956,1745524242997,-500.0,0.00016815,2]
[358883958,1745524243012,-500.0,0.00016815,2]
[358883962,1745524243025,-1743.164742,0.00016815,2]
[358883965,1745524243038,-1743.164742,0.00016815,2]
[358883968,1745524243050,-1743.164742,0.00016815,2]
[358883969,1745524243062,-387.68245617,0.00016815,2]
[358883972,1745524243075,-1743.164742,0.00016815,2]
[358883974,1745524243087,-500.0,0.00016815,2]
[358883976,1745524243101,-502.59668745,0.00016815,2]
[358883978,1745524243114,-500.0,0.00016815,2]
[358883981,1745524243127,-500.0,0.00016815,2]
[358883983,1745524243140,-500.0,0.00016815,2]
[358883985,1745524243153,-500.0,0.00016815,2]
[358883987,1745524243165,-500.0,0.00016815,2]
[358883990,1745524243177,-500.0,0.00016815,2]
[358883992,1745524243189,-561.46,0.00016815,2]
[358883994,1745524243202,-500.0,0.00016815,2]
[358883996,1745524243215,-500.0,0.00016815,2]
[358883999,1745524243228,-501.09037754,0.00016815,2]
[358884001,1745524243240,-500.0,0.00016815,2]
[358884003,1745524243253,-500.0,0.00016815,2]
[358884006,1745524243266,-500.0,0.00016815,2]
[358884008,1745524243279,-519.34569193,0.00016815,2]
[358884010,1745524243292,-502.8591018,0.00016815,2]
[358884013,1745524243304,-151.0,0.00016815,2]
[358884015,1745524243318,-151.0,0.00016815,2]
[358884017,1745524243331,-151.0,0.00016815,2]
[358884019,1745524243343,-152.414196,0.00016815,2]
[358884022,1745524243357,-504.59063616,0.00016815,2]
[358884024,1745524243370,-500.0,0.00016815,2]
[358884026,1745524243382,-500.0,0.00016815,2]
[358884029,1745524243394,-500.0,0.00016815,2]
[358884031,1745524243408,-221.05642372,0.00016815,2]
[358884033,1745524243421,-500.0,0.00016815,2]
[358884035,1745524243434,-500.0,0.00016815,2]
[358884036,1745524243447,-500.0,0.00016815,2]
[358884037,1745524243460,-513.48251173,0.00016815,2]
[358884038,1745524243473,-507.14471791,0.00016815,2]
[358884039,1745524243487,-151.0,0.00016815,2]
[358884040,1745524243500,-151.0,0.00016815,2]
[358884041,1745524243512,-151.0,0.00016815,2]
[358884042,1745524243525,-500.0,0.00016815,2]
[358884043,1745524243538,-153.661912,0.00016815,2]
[358884044,1745524243551,-592.95871272,0.00016815,2]
[358884045,1745524243564,-500.0,0.00016815,2]
[358884046,1745524243579,-151.0,0.00016815,2]
[358884047,1745524243592,-151.0,0.00016815,2]
[358884048,1745524243606,-155.239611,0.00016815,2]
[358884049,1745524243618,-500.0,0.00016815,2]
[358884050,1745524243632,-2686.33,0.00016815,2]
[358884051,1745524243645,-500.0,0.00016815,2]
[358884052,1745524243658,-521.25,0.00016815,2]
[358884053,1745524243671,-1083.01,0.00016815,2]
[358884054,1745524243684,-510.71071946,0.00016815,2]
[358884055,1745524243697,-500.98956056,0.00016815,2]
[358884056,1745524243710,-520.69,0.00016815,2]
[358884057,1745524243724,-698.34,0.00016815,2]
[358884058,1745524243737,-400.0,0.00016815,2]
[358884059,1745524243747,-293.37508133,0.00016815,2]
[358884060,1745524243758,-500.0,0.00016815,2]
[358884061,1745524243767,-500.0,0.00016815,2]
[358884062,1745524243776,-518.95589744,0.00016815,2]
[358884063,1745524243786,-565.32358434,0.00016815,2]
[358884064,1745524243796,-500.0,0.00016815,2]
[358884065,1745524243979,-1520.78,0.00016815,2]
[358884066,1745524244072,-151.0,0.00016815,2]
[358884067,1745524244085,-151.0,0.00016815,2]
[358884068,1745524244095,-151.0,0.00016815,2]
[358884069,1745524244106,-151.0,0.00016815,2]
[358884070,1745524244117,-151.0,0.00016815,2]
[358884071,1745524244126,-151.0,0.00016815,2]
[358884072,1745524244136,-151.0,0.00016815,2]
[358884073,1745524244146,-500.0,0.00016815,2]
[358884074,1745524244156,-606.95,0.00016815,2]
[358884075,1745524244168,-500.0,0.00016815,2]